Cogmind - Beta 13 @@@ ROGUE MODE // 2024.02.28 @ 20:02:08 Player: Dizzar Result: Self-destructed Performance ------------- Evolutions (2) 1000 Regions Visited (4) 800 Robots Destroyed (14) 70 Value Destroyed (317) 317 Prototype IDs (4) 80 Alien Tech Used (0) 0 Bonus (0) 0 TOTAL SCORE: 2267 Bonus ------- None Cogmind --------- Core Integrity 457/550 Matter 120/300 Energy 97/100 System Corruption 0% Temperature Cool (27) Movement Core (50) Location -8/Materials Parts ------- > --- POWER (1) -------- (None) > --- PROPULSION (4) --- (None) > --- UTILITY (4) ------ Small Storage Unit Weight Redist. System > --- WEAPON (2) ------- (None) > --- INVENTORY (8) ---- Ion Engine Ion Engine Light Ion Engine Core Shielding Light Assault Rifle Shotgun Improved Grenade Launcher Scythe Peak State ------------ > --- POWER ------------ Light Ion Engine > --- PROPULSION ------- Flight Unit Flight Unit Flight Unit > --- UTILITY ---------- Small Storage Unit Weight Redist. System Reaction Control System Light Armor Plating > --- WEAPON ----------- Maul Maul > --- INVENTORY -------- Ion Engine Ion Engine Light Ion Engine Core Shielding Assault Rifle Light Assault Rifle Shotgun [Rating: 15] Favorites ----------- Power Ion Engine Engine Ion Engine Propulsion Aluminum Leg Leg Aluminum Leg Flight Unit Flight Unit Utility Small Storage Unit Device Weight Redist. System Storage Small Storage Unit Protection Weapon Shielding Weapon Assault Rifle Energy Gun Small Laser Ballistic Gun Assault Rifle Impact Weapon Maul Build | -11 -10 -10 -9 -8 ------- Run | Yrd Mat Min Mat Mat Slots Evolved 4 | . . . 2 2 Power . | . . . . . Propulsion 2 | . . . 1 1 Utility 2 | . . . 1 1 Weapon . | . . . . . Parts Attached 19 | . 6 1 7 5 Power 2 | . 1 . 1 . Engine 2 | . 1 . 1 . Core . | . . . . . Reactor . | . . . . . Propulsion 4 | . 1 . 3 . Treads . | . . . . . Leg 1 | . 1 . . . Wheel . | . . . . . Hover . | . . . . . Flight 3 | . . . 3 . Utility 6 | . 1 . 2 3 Device 2 | . . . 1 1 Storage . | . . . . . Processor . | . . . . . Hackware . | . . . . . Protection 4 | . 1 . 1 2 Artifact . | . . . . . Weapon 7 | . 3 1 1 2 Energy Gun 1 | . 1 . . . Energy Cannon . | . . . . . Ballistic Gun 4 | . 2 1 1 . Ballistic Cannon . | . . . . . Launcher . | . . . . . Special Weapon . | . . . . . Impact Weapon 2 | . . . . 2 Slashing Weapon . | . . . . . Piercing Weapon . | . . . . . Special Melee Weapon . | . . . . . Unidentified Prototypes . | . . . . . Parts Lost 5 | . . . . 5 Power 1 | . . . . 1 Propulsion 3 | . . . . 3 Utility 1 | . . . . 1 Weapon . | . . . . . Highest Loss Streak 4 | . . . . 4 To Critical Strikes . | . . . . . Average Slot Usage (%) 89 | . 95 100 79 68 Engine 12 | . 14 14 11 9 Leg 19 | . 28 28 . . Flight 7 | . . . 33 20 Device 2 | . . . 2 14 Storage 12 | . 14 14 11 9 Protection 9 | . 10 14 11 6 Energy Gun 3 | . 6 . . . Ballistic Gun 17 | . 21 28 11 4 Naked Turns . | . . . . . Heaviest Build 15 | 14 15 15 12 15 Greatest Support 20 | 20 20 20 18 18 Greatest Overweight (x) . | . . . . . Average Overweight (x) . | . . . . . Largest Inventory Capacity 8 | . 8 8 8 8 Average Capacity 8 | . 8 8 8 8 Most Carried 8 | . 8 8 8 8 Average Carried 7 | . 7 7 7 7 Final Capacity 8 | 8 8 8 8 8 Final Carried 8 | 6 8 8 8 8 Class Distribution -------------------- 100% | Mutant Dominant Class ---------------- Mutant | -10/Materials Mutant | -10/Mines Mutant | -9/Materials Mutant | -8/Materials Resources | -11 -10 -10 -9 -8 ----------- Run | Yrd Mat Min Mat Mat Matter Collected 398 | 200 186 12 . . Remotely . | . . . . . Salvage Created 421 | . 373 48 . . Parts 26 | . 21 5 . . Haulers Intercepted . | . . . . . Recyclers Shooed . | . . . . . Parts Field Recycled . | . . . . . Retrieved Matter . | . . . . . Parts Self-Destructed . | . . . . . Prevented . | . . . . . Kills | -11 -10 -10 -9 -8 ------- Run | Yrd Mat Min Mat Mat Combat Hostiles Destroyed 13 | . 10 3 . . Guns 13 | . 10 3 . . Classes Destroyed 3 | . 3 . . . Recycler 1 | . 1 . . . Swarmer 6 | . 3 3 . . Grunt 7 | . 7 . . . Best Kill Streak 5 | . 5 2 . . Combat Bots Only 5 | . 5 2 . . Max Kills in Single Turn 1 | . 1 1 . . Gunslinging . | . . . . . Exploded . | . . . . . Melee . | . . . . . Uniques/NPCs Destroyed . | . . . . . Combat | -11 -10 -10 -9 -8 -------- Run | Yrd Mat Min Mat Mat Hostile Shots Fired 104 | . 44 15 8 37 Missed 40 | . 14 5 3 18 Damage Taken 774 | . 315 88 74 297 Core 193 | . 54 10 36 93 Absorbed by Shields . | . . . . . Redirected to Shielding 40 | . 16 15 7 2 Core Remaining (%) 88 | 100 . 74 91 . Volleys Fired 50 | . 41 5 4 . Largest 2 | . 2 2 1 . Hottest 60 | . 60 40 23 . Shots Fired 96 | . 82 10 4 . Gun 96 | . 82 10 4 . Cannon . | . . . . . Launcher . | . . . . . Special . | . . . . . Kinetic 71 | . 57 10 4 . Thermal 20 | . 20 . . . Explosive . | . . . . . Electromagnetic 5 | . 5 . . . Robot Hit Streak 10 | . 10 1 4 . Robot Miss Streak 5 | . 5 5 3 . Penetration Max . | . . . . . Secondary Targets . | . . . . . Shots Hit Robots 53 | . 47 3 3 . Core Hits 21 | . 18 3 . . Critical Kills 1 | . . 1 . . Critical Parts Destroyed . | . . . . . Critical Strikes 1 | . . 1 . . Destroy 1 | . . 1 . . Melee Attacks 2 | . . . . 2 Impact 2 | . . . . 2 Slashing . | . . . . . Piercing . | . . . . . Sneak Attacks . | . . . . . Combat Hostiles . | . . . . . Follow-up Attacks . | . . . . . Damage Inflicted 693 | . 582 41 43 27 Guns 666 | . 582 41 43 . Cannons . | . . . . . Explosions . | . . . . . Melee . | . . . . . Ramming 27 | . . . . 27 Kinetic 490 | . 406 41 43 . Thermal 163 | . 163 . . . Explosive . | . . . . . Electromagnetic 13 | . 13 . . . Impact . | . . . . . Slashing . | . . . . . Piercing . | . . . . . Highest Corruption . | . . . . . Average Corruption . | . . . . . Corruption Purged . | . . . . . Corruption Blocked . | . . . . . Overload Shots . | . . . . . Overflow Damage . | . . . . . Projectiles . | . . . . . Explosions . | . . . . . Melee . | . . . . . Knockbacks . | . . . . . Impact . | . . . . . Kinetic . | . . . . . Secondary . | . . . . . Self-Inflicted Damage 13 | . . . . 13 Shots . | . . . . . Rammed 1 | . . . . 1 Targets Rammed 1 | . . . . 1 Kicked . | . . . . . Crushed . | . . . . . Highest Temperature 114 | . 114 . 16 5 Average Temperature 55 | . 57 . 10 5 Received Heat Transfer 330 | . 132 . 54 144 Siege Activations . | . . . . . Robots Corrupted . | . . . . . Combat Hostiles . | . . . . . Parts Fried . | . . . . . Impact Corruptions . | . . . . . Robots Melted . | . . . . . Combat Hostiles . | . . . . . Parts Melted . | . . . . . Heat Transferred 375 | . 375 . . . Parts Sabotaged . | . . . . . Parts Stolen . | . . . . . Parts Stripped . | . . . . . Power Chain Reactions . | . . . . . Alert | -11 -10 -10 -9 -8 ------- Run | Yrd Mat Min Mat Mat Peak Influence 336 | . 336 152 204 176 Initial 85 | . . 52 59 85 Average 142 | . 160 113 90 123 Maximum Alert Level 1 | . 1 . 1 . Low Security (%) 74 | . 61 100 94 100 Level 1 25 | . 38 . 5 . Level 2 . | . . . . . Level 3 . | . . . . . Level 4 . | . . . . . Level 5 . | . . . . . High Security . | . . . . . Max Security . | . . . . . Squads Dispatched 8 | . 3 . 2 3 Investigation 3 | . 1 . . 2 Extermination . | . . . . . Reinforcement 5 | . 2 . 2 1 Assault . | . . . . . Garrison . | . . . . . Intercept . | . . . . . Searches Triggered . | . . . . . Construction Impeded . | . . . . . Haulers Reinforced . | . . . . . Active Scanning Responses . | . . . . . Cargo Convoy Interrupts . | . . . . . Stealth | -11 -10 -10 -9 -8 --------- Run | Yrd Mat Min Mat Mat Distress Signals 3 | . 2 . 1 . Communications Jammed . | . . . . . Distress Signals . | . . . . . Times Spotted 53 | . 22 4 11 16 Peak Tracking Total 12 | . 5 3 8 12 Tactical Retreats 4 | . 1 1 1 1 Traps | -11 -10 -10 -9 -8 ------- Run | Yrd Mat Min Mat Mat Traps Triggered . | . . . . . Indirectly . | . . . . . Trap Hack Attempts . | . . . . . Triggered . | . . . . . Disarmed . | . . . . . Reprogrammed . | . . . . . Reused . | . . . . . Traps Extracted . | . . . . . Installed . | . . . . . Triggered . | . . . . . Machines | -11 -10 -10 -9 -8 ---------- Run | Yrd Mat Min Mat Mat Machines Disabled . | . . . . . Max in Single Turn . | . . . . . Machines Repaired . | . . . . . Machines Dismantled . | . . . . . Machines Sabotaged . | . . . . . Overloaded Fab Kills . | . . . . . Hacking | -11 -10 -10 -9 -8 --------- Run | Yrd Mat Min Mat Mat Machines Accessed 5 | . 1 . 1 3 Terminals 5 | . 1 . 1 3 Fabricators . | . . . . . Repair Stations . | . . . . . Recycling Units . | . . . . . Scanalyzers . | . . . . . Garrison Access . | . . . . . Total Hacks 14 | . 4 . 2 8 Successful 9 | . 1 . 2 6 Failed 5 | . 3 . . 2 Catastrophic 1 | . 1 . . . Database Lockouts . | . . . . . Manual 7 | . . . 1 6 Terminals 14 | . 4 . 2 8 Fabricators . | . . . . . Repair Stations . | . . . . . Recycling Units . | . . . . . Scanalyzers . | . . . . . Garrison Access . | . . . . . Terminal Hacks 5 | . 1 . 1 3 Prototype ID Bank 2 | . . . 1 1 Level Access Points 1 | . 1 . . . Terminal Index 1 | . . . . 1 Zone Layout 1 | . . . . 1 Fabricator Hacks . | . . . . . Repair Station Hacks . | . . . . . Recycling Unit Hacks . | . . . . . Scanalyzer . | . . . . . Garrison Access Hacks . | . . . . . Unauthorized Hacks 4 | . . . 1 3 Terminals 4 | . . . 1 3 Assimilate 2 | . . . 1 1 Botnet 2 | . . . . 2 Fabricators . | . . . . . Repair Stations . | . . . . . Recycling Units . | . . . . . Scanalyzers . | . . . . . Garrison Access . | . . . . . Data Cores Recovered . | . . . . . Used . | . . . . . Hacking Detections 5 | . 1 . 1 3 Full Trace Events 3 | . 1 . . 2 Feedback Events . | . . . . . Feedback Blocked . | . . . . . Robot Schematics Acquired . | . . . . . Robots Built . | . . . . . Authchips . | . . . . . Time . | . . . . . Total Robot Build Rating . | . . . . . Part Schematics Acquired . | . . . . . Parts Built . | . . . . . Authchips . | . . . . . Time . | . . . . . Total Part Build Rating . | . . . . . Parts Repaired . | . . . . . Time . | . . . . . Parts Recycled . | . . . . . Recycled Matter . | . . . . . Retrieved Matter . | . . . . . Retrieved Components . | . . . . . Parts Scanalyzed . | . . . . . Part Schematics Acquired . | . . . . . Parts Damaged . | . . . . . Bothacking | -11 -10 -10 -9 -8 ------------ Run | Yrd Mat Min Mat Mat Used RIF Installer . | . . . . . Robots Hacked . | . . . . . Non-combat . | . . . . . Combat . | . . . . . Robot Hacks Applied . | . . . . . Relay Couplers Released . | . . . . . Fabnet Peak Effective % . | . . . . . Robots Rewired . | . . . . . Allies Hacked . | . . . . . Hacks Repelled . | . . . . . Allies | -11 -10 -10 -9 -8 -------- Run | Yrd Mat Min Mat Mat Total Allies 2 | . . . 1 1 Largest Group 2 | . . . 1 2 Highest-Rated Group 36 | . . . 10 36 Highest-Rated Ally 26 | . . . 10 26 Total Orders . | . . . . . Ally Attacks . | . . . . . Total Damage . | . . . . . Kills . | . . . . . Allies Corrupted . | . . . . . Allies Melted . | . . . . . Intel | -11 -10 -10 -9 -8 ------- Run | Yrd Mat Min Mat Mat Robot Analysis Total . | . . . . . Derelict Logs Recovered . | . . . . . Drone Launches . | . . . . . Drone Recoveries . | . . . . . Exploration | -11 -10 -10 -9 -8 ------------- Run | Yrd Mat Min Mat Mat Turns Passed 803 | . 509 52 103 139 Spaces Moved 778 | 1 291 14 194 278 Core 35 | . . . . 35 Treads . | . . . . . Legs 306 | 1 291 14 . . Wheels . | . . . . . Hover . | . . . . . Flight 437 | . . . 194 243 Fastest Speed 34 | 120 120 120 34 34 Average Speed 69 | 120 120 120 34 37 Slowest Speed 120 | 120 120 120 34 50 Overloaded Moves . | . . . . . Propulsion Burnouts . | . . . . . Robots Hopped 10 | . . . 7 3 Cave-ins Triggered . | . . . . . Exploration Rate (%) 25 | 2 63 5 28 28 Regions Visited 4 Branch Regions 1 Pre-discovered Areas . | . . . . . Known Exits Taken 1 | . . 1 . . Unknown Exits Taken 3 | 1 1 . 1 . Scrap Searched . | . . . . . Spaces Dug 1 | . . . . 1 Terrain Destroyed 1 | . . . . 1 Melee 1 | . . . . 1 Projectile . | . . . . . AOE . | . . . . . Terrain Rammed . | . . . . . Walls Destroyed . | . . . . . Machines Disabled . | . . . . . Actions | -11 -10 -10 -9 -8 --------- Run | Yrd Mat Min Mat Mat Total 940 | . 370 39 220 311 Wait 67 | . 21 17 15 14 Move 758 | . 290 13 183 272 Hop 6 | . . . 3 3 Pick Up 14 | . 5 1 2 6 Fast Attach 6 | . 2 1 2 1 Attach 7 | . . . 4 3 Detach 4 | . . . 3 1 Swap 6 | . 4 . 1 1 Drop 20 | . 7 2 3 8 Fire 50 | . 41 5 4 . Melee 1 | . . . . 1 Ram 1 | . . . . 1 Kick . | . . . . . Crush . | . . . . . Escape Stasis . | . . . . . Rewire . | . . . . . Trap . | . . . . . Miscellaneous . | . . . . . Route ------- -11/Scrapyard -10/Materials (discovered 4 exits: *Mat x3 / [*Min]) -10/Mines -9/Materials -8/Materials History --------- Turn | Location | Event 1 | -11/Scrapyard | Discovered new exit (range 0) 1 | -11/Scrapyard | Entered Materials 137 | -10/Materials | Identified exit to Materials 317 | -10/Materials | Build established: Mutant 500 | -10/Materials | Discovered new exit (range 9) 510 | -10/Materials | Entered Mines 510 | -10/Mines | Discovered exit to Materials (range 6) 562 | -10/Mines | Entered Materials 562 | -9/Materials | Evolved 2 slots: Propulsion x1, Utility x1 656 | -9/Materials | Discovered new exit (range 9) 665 | -9/Materials | Entered another Materials area 665 | -8/Materials | Accompanied by 1 ally 665 | -8/Materials | Evolved 2 slots: Propulsion x1, Utility x1 804 | -8/Materials | Self-destructed Last Messages --------------- 00742_ Dropped Lgt. Armor Plating. 00764_ ALERT: Hostiles spotted, dispatching reinforcements to Terminal M002. 00770_ Dropped Maul. 00770_ Acquired Scythe. 00772_ Dropped Assault Rifle. 00773_ Acquired Imp. Grenade Launcher. 00774_ R-06 Scavenger collects Assault Rifle. 00780_ Flight Unit destroyed. 00780_ Critical hit (Burn: +37). 00780_ Dropped Maul. 00785_ Flight Unit destroyed. 00792_ Slug penetrates Door. 00800_ Slammed into G-47 Trooper. 00802_ Lgt. Ion Engine destroyed. 00802_ Slug penetrates Wall. 00802_ Reaction Control System destroyed. 00804_ Critical hit (Burn: +37). 00804_ Hadron Collector disabled. 00804_ Y-45 Defender destroyed. Map ----- +----------------------------------------------------+ | ???????? """ ?# #??????# #?????###????????? | | ??????? """ # ######## ### ##???????? | | ??????# """ # ????? | | ??????# + ????? | | ??????# """ # ????? | | ??????? """ ### ####### ##### ###+#????? | | ???????? """ ???# #?????# #????######????????? | | ???????? ???# #?????# #??????????????????? | | ???????######????# #?????# #??????????????????? | | ?????????######### #?????# #??????????????????? | | ????????# # #??? ## #??????????????????? | | ????????#] """ ==# #??? ## #??????????????????? | | ????????# """ =!# #?? ?# #??????????????????? | | ######### """ # #?? ?# #??????????????????? | | # ##% # ###"## #?????????????????? | | # """ ## """ + ?????????????? | | # """ ## """ # ?????????????? | | # """ ## """% # ## ##????????????????? | | # ##! # #??####?????????????????? | | # """ #######+### ##??????????????????????? | | # """ + r +?????????????????????? | | # """ # Y ######?????????????????????? | | # # #### ###/#######?????????????????????? | | # """ # #??# ## gb #?????????????????????? | | #/ """ # #??# ##""" #?????????????????????? | | # """ # #??# ##""" @ #?????????????????????? | | # # #??# ##""" #?????????????????????? | | ########+#??# ##"" #?????????????????????? | | ?????# ?# ## #?????????????????????? | | ?????# # ##= #?????????????????????? | | ?????# # ##%!% #?????????????????????? | | ?????# " H/g ! #?????????????????????? | | ?????# " ###########?????????????????????? | | ?????# # #???????????????????????????????? | | ?????######## ##??????????????????????????????? | | ??????###### #??????????????????????????????? | | ??????# #??????????????????????????????? | | ??????# #??????????????????????????????? | | ??????###### #??????????????????????????????? | | ???????????######??????????????????????????????? | | ???????????????????????????????????????????????? | | | | | | | | | | | | | | | | | | | +----------------------------------------------------+ Best States ------------- Heat Dissipation 31 Energy Generation 10 Energy Capacity 250 Matter Stores 300 Matter Capacity 300 Sight Range 16 Terrain Scan Density 10 Additional Mass Support 6 Armor Coverage 150 Core Shielding 20 Weapon Shielding 33 Evasion (%) 71 Item Schematics ----------------- None Robot Schematics ------------------ None Fabricated ------------ Nothing Alien Tech Used ----------------- None Achievements -------------- None Challenges ------------ None Game ------ Seed MakeshiftSapperKit Manual? 0 Play Time 00:14:26 Cumulative 55.1 hours Start 2024.02.28 @ 19:49:04 End 2024.02.28 @ 20:02:08 Sessions 1 Manual Loads 0 Difficulty Rogue Special Mode None Game No. 73 Rogue 73 Adventurer 0 Explorer 0 Win Type - Total 4 Types 4/0/0/0/0/0/0/0/0 Lore% 41 Gallery% 47 Achievement% 42 Wizard Run 0 Options --------- Layout 1 ASCII 0 Keyboard 0 Movement Mouse Keybinds 0 Fullscreen 1 Font 24/Smallcaps Map View 50x35 Zoom Use 0% Tactical HUD 1 Map Filters NONE Filters NONE Steam 1 RUN: 82e54c4a-287f-4ecd-afd6-0bdffd758583